lending/lending_fUSD_20240721
["ID","MTS","AMOUNT","RATE_DAILY","PERIOD"]
[332857156,1721587833479,-161.26480951,0.00011105,2]
[332857158,1721587833489,-242.33538209,0.00011105,2]
[332857160,1721587833500,-958.87150947,0.00011105,2]
[332857162,1721587833510,-539.10941512,0.00011105,2]
[332857164,1721587833523,-198.65575017,0.00011105,2]
[332857166,1721587833534,-1043.42545377,0.00011105,2]
[332857167,1721587833544,-200.51389833,0.00011105,2]
[332857168,1721587833555,-1073.15860955,0.00011105,2]
[332857169,1721587833567,-155.0,0.00011105,2]
[332857170,1721587833578,-156.1108163,0.00011105,2]
[332857171,1721587833589,-1296.43589473,0.00011105,2]
[332857172,1721587833600,-1133.22331236,0.00011105,2]
[332857173,1721587833610,-1500.0,0.00011105,2]
[332857174,1721587833621,-157.05432231,0.00011105,2]
[332857175,1721587833631,-158.3648367,0.00011105,2]
[332857176,1721587833643,-155.0,0.00011105,2]
[332857177,1721587833654,-3399.71436587,0.00011105,2]
[332857178,1721587833665,-265.08570858,0.00011105,2]
[332857179,1721587833675,-439.46122706,0.00011105,2]
[332857180,1721587833687,-492.92587255,0.00011105,2]
[332857181,1721587833697,-209.01543373,0.00011105,2]
[332857182,1721587833709,-1445.06542743,0.00011105,2]
[332857183,1721587833719,-164.16460495,0.00011105,2]
[332857184,1721587833730,-155.0,0.00011105,2]
[332857185,1721587833741,-3066.02362384,0.00011105,2]
[332857186,1721587833752,-364.91913643,0.00011105,2]
[332857187,1721587833763,-15461.81890924,0.00011105,2]
[332857188,1721587833774,-308.85879004,0.00011105,2]
[332857189,1721587833785,-450.36895411,0.00011105,2]
[332857190,1721587833795,-1386.74864928,0.00011105,2]
[332857191,1721587833806,-521.74362309,0.00011105,2]
[332857192,1721587833816,-158.64569138,0.00011105,2]
[332857193,1721587833827,-1112.41910125,0.00011105,2]
[332857194,1721587833837,-890.74057297,0.00011105,2]
[332857195,1721587833848,-264.09660197,0.00011105,2]
[332857196,1721587833859,-379.80832865,0.00011206,2]
[332857197,1721587833870,-270.18518051,0.00011206,2]
[332857198,1721587833882,-462.08501184,0.00011322,2]
[332857199,1721587833893,-216.91,0.00011325,2]
[332857200,1721587833905,-30779.445,0.00011363,2]
[332857201,1721587833916,-460.3253,0.00011462,2]
[332857202,1721587833927,-235.2687,0.00011463,2]
[332857203,1721587833938,-12689.3075,0.00011463,2]
[332857204,1721587833949,-99841.39422026,0.00011463,2]
[332857205,1721587833965,-1213.93749004,0.00011463,2]
[332857206,1721587833977,-334.61,0.00011463,2]
[332857207,1721587834095,-521.124372,0.00011463,2]
[332857208,1721587834125,-7008.54387818,0.00011463,2]
[332857209,1721587834137,-267.33832,0.00011463,2]
[332857210,1721587834173,-135813.05171952,0.00011463,2]
[332857211,1721587834184,-18424.6012,0.00011463,2]
[332857212,1721587834196,-587.0,0.00011467,2]
[332857213,1721587834206,-19921.58483384,0.00011556,2]
[332857214,1721587834219,-1005.93274887,0.00011662,2]
[332857215,1721587834233,-1085.10467927,0.00011662,2]
[332857216,1721587834243,-3742.0,0.00011663,2]
[332857217,1721587834253,-2249.44921,0.0001178,2]
[332857218,1721587834265,-420.03,0.00011781,2]
[332857219,1721587834276,-833.39,0.00011781,2]
[332857220,1721587834287,-420.03,0.00011781,2]
[332857221,1721587834298,-420.03,0.00011781,2]
[332857222,1721587834308,-1664.68,0.00011781,2]
[332857223,1721587834319,-420.03,0.00011781,2]
[332857224,1721587834330,-833.39,0.00011781,2]
[332857225,1721587834340,-420.03,0.00011781,2]
[332857226,1721587834351,-833.39,0.00011781,2]
[332857227,1721587834361,-420.03,0.00011781,2]
[332857228,1721587834371,-1665.38,0.00011781,2]
[332857229,1721587834381,-833.39,0.00011781,2]
[332857230,1721587834391,-833.39,0.00011781,2]
[332857231,1721587834401,-833.39,0.00011781,2]
[332857232,1721587834411,-833.39,0.00011781,2]
[332857233,1721587834422,-420.03,0.00011781,2]
[332857234,1721587834432,-420.03,0.00011781,2]
[332857235,1721587834443,-833.39,0.00011781,2]
[332857236,1721587834453,-1294.62,0.00011781,2]
[332857237,1721587834467,-1000.0,0.000118,2]
[332857238,1721587834478,-1000.0,0.000118,2]
[332857239,1721587834488,-338.70178381,0.000118,2]
[332857240,1721587834498,-3327.4493,0.000118,2]
[332857241,1721587834509,-927.60680925,0.000118,2]
[332857242,1721587834519,-5990.017219,0.000118,2]
[332857243,1721587834530,-500.0,0.00011805,2]
[332857244,1721587834540,-500.0,0.00011805,2]
[332857245,1721587834551,-1829.0,0.00011833,2]
[332857246,1721587834561,-1663.0,0.00011833,2]
[332857247,1721587834571,-362.0,0.00011833,2]
[332857248,1721587834582,-1253.0,0.00011833,2]
[332857249,1721587834592,-445.0,0.00011833,2]
[332857250,1721587834602,-810.0,0.00011833,2]
[332857251,1721587834612,-450.0,0.00011833,2]
[332857252,1721587834622,-150.0,0.00011833,2]
[332857253,1721587834633,-620.0,0.00011833,2]
[332857254,1721587834643,-550.0,0.00011833,2]
[332857255,1721587834654,-2382.0,0.00011833,2]
[332857256,1721587834665,-150.0,0.00011833,2]
[332857257,1721587834676,-3282.0,0.00011833,2]
[332857258,1721587834687,-1994.0,0.00011833,2]
[332857259,1721587834697,-5826.0,0.00011833,2]
[332857260,1721587834709,-150.0,0.00011833,2]
[332857261,1721587834719,-5120.0,0.00011833,2]
[332857262,1721587834730,-14007.678,0.00011833,2]
[332857263,1721587834740,-1201.706,0.00011833,2]
[332857264,1721587834750,-1668.0,0.00011833,2]
[332857265,1721587834760,-150.0,0.00011833,2]
[332857266,1721587834770,-5290.13878641,0.00011897,2]
[332857267,1721587834780,-300.02,0.00011899,2]
[332857268,1721587834790,-577.35723271,0.00011899,2]
[332857269,1721587834800,-227140.37505276,0.000119,2]
[332857270,1721587834816,-11360.65198285,0.000119,2]
[332857271,1721587834828,-4020.05519747,0.000119,2]
[332857279,1721587838969,-7500.0,0.000118,2]
[332857280,1721587838979,-1073.0,0.00011833,2]
[332857281,1721587838990,-288.67861635,0.00011899,2]
[332857282,1721587839000,-14223.97473122,0.000119,2]
[332857283,1721587839094,-8779.34461839,0.000119,2]
[332857284,1721587839106,-942.65926737,0.000119,2]
[332857285,1721587839223,-644.47142518,0.000119,2]
[332857339,1721587841010,-884.16644664,0.000119,2]
[332857341,1721587841021,-3455.39202086,0.000119,2]
[332857344,1721587841032,-1417.4489602,0.000119,2]
[332857346,1721587841043,-6567.22264532,0.000119,2]
[332857348,1721587841055,-2283773.36324648,0.000119,2]
[332857350,1721587841066,-5022.96004663,0.000119,2]
[332857353,1721587841080,-44641.3558137,0.000119,2]
[332857675,1721587843852,-288.67861635,0.00011899,2]
[332857678,1721587843862,-1113.92138366,0.000119,2]
[332857683,1721587843874,-1229.07,0.000119,2]
[332857686,1721587843886,-956.25426,0.000119,2]
[332857701,1721587843956,-1326.0561771,0.000119,2]
[332857835,1721587848135,-547.84176427,0.00011662,2]
[332857838,1721587848286,-454.21,0.00011662,2]
[332857839,1721587848298,-670.833236,0.00011662,2]
[332857840,1721587848310,-106.39955987,0.00011662,2]
[332857841,1721587848320,-150.0,0.00011833,2]
[332857842,1721587848329,-575.11511724,0.000119,2]
[332857843,1721587848341,-571.13282997,0.000119,2]
[332857844,1721587848352,-683.97176608,0.000119,2]
[332857845,1721587848541,-337.08969517,0.000119,2]
[332857846,1721587848552,-349.00808743,0.000119,2]
[332857847,1721587848564,-620.1702649,0.000119,2]
[332858049,1721588367287,1105.53,8.812e-05,2]
[332858050,1721588388741,155.0,0.00011896,60]
[332858051,1721588435240,155.0,0.00010681,60]
[332858058,1721588899845,1050.25,8.748e-05,2]
[332858063,1721589032713,-176.21813954,0.00010553,2]
[332858064,1721589032725,-188.65,0.00010564,2]
[332858065,1721589032736,-176.21813952,0.00010567,2]
[332858066,1721589032746,-166.04615262,0.00010581,2]
[332858067,1721589032758,-176.21813952,0.00010581,2]
[332858068,1721589032768,-162.69,0.00010653,2]
[332858069,1721589032778,-300.23388085,0.00010681,2]
[332858070,1721589032788,-527.63338735,0.00010681,2]
[332858071,1721589032798,-181.50980067,0.00010681,2]
[332858072,1721589032808,-250.0,0.0001069,2]
[332858073,1721589032818,-174.70851255,0.00010736,2]
[332858102,1721589037823,-56.50148745,0.00010736,2]
[332858103,1721589037833,-300.0,0.00010773,2]
[332858104,1721589037843,-645.53267235,0.00010774,2]
[332858105,1721589037854,-717.43275554,0.00010774,2]
[332858118,1721589040057,-1117.94494718,0.00010774,2]
[332858119,1721589040069,-350.15048567,0.00010774,2]
[332858392,1721589042750,-774.62398517,0.00010774,2]
[332858408,1721589042836,-7092.9999999,0.00010774,2]
[332858410,1721589042847,-11679.8766,0.00010774,2]
[332858649,1721589046648,-1341.31348,0.00010774,2]
[332858650,1721589046662,-180.12507419,0.00010774,2]
[332858651,1721589046672,-160.06492581,0.00010776,2]
[332858652,1721589046711,-89.93507419,0.00010776,2]
[332858653,1721589046720,-313.10810321,0.00010849,2]
[332858656,1721589304249,197.53,8.502e-05,2]
[332858658,1721589369557,180.42,8.455e-05,2]
[332858660,1721589442465,258.26907189,8.608e-05,2]
[332858661,1721589442488,784.83092811,8.608e-05,2]
[332858662,1721589679392,155.0,0.00011896,60]
[332858673,1721589974763,1004.11,8.699e-05,2]
[332858754,1721590231773,-499.46594985,0.0001,2]
[332858756,1721590231783,-192.41907189,0.00010305,2]
[332858758,1721590231793,-198.20156249,0.00010434,2]
[332858761,1721590231803,-250.0,0.00010466,2]
[332858764,1721590231813,-184.97,0.0001047,2]
[332858767,1721590231824,-300.0,0.00010488,2]
[332858768,1721590231834,-300.0,0.00010488,2]
[332858769,1721590231843,-4830.79449577,0.00010489,2]
[332858770,1721590231957,-19069.20550423,0.00010489,2]
[332858771,1721590231970,-1000.0,0.00010517,2]
[332858772,1721590231981,-2215.1736,0.00010531,2]
[332858773,1721590231990,-195.69,0.00010537,2]
[332858774,1721590232001,-250.0,0.00010537,2]
[332858775,1721590232010,-19663.15203905,0.00010544,2]
[332858776,1721590232020,-170.17,0.00010553,2]
[332858777,1721590232029,-150.0,0.0001063,2]
[332858778,1721590232041,-2354.28,0.00010631,2]
[332858779,1721590232051,-590.08,0.00010631,2]
[332858780,1721590232060,-499.99,0.00010631,2]
[332858781,1721590232069,-1821.71,0.00010631,2]
[332858782,1721590232079,-1971.67083,0.0001078,2]
[332858783,1721590232088,-15724.4885714,0.00010842,2]
[332858784,1721590232097,-3103.29,0.00010842,2]
[332858785,1721590232107,-200.0,0.000109,3]
[332858786,1721590232116,-1004.11,0.00010963,2]
[332858787,1721590232126,-419.77,0.00011,2]
[332858788,1721590232137,-833.09,0.00011,2]
[332858789,1721590232146,-300.0,0.00011,2]
[332858790,1721590232156,-330.57,0.00011,2]
[332858791,1721590232165,-833.39,0.00011,2]
[332858792,1721590232174,-833.39,0.00011,2]
[332858793,1721590232184,-833.39,0.00011,2]
[332858794,1721590232197,-833.39,0.00011,2]
[332858795,1721590232207,-833.39,0.00011,2]
[332858796,1721590232216,-1048.13,0.00011,2]
[332858797,1721590232225,-420.03,0.00011,2]
[332858798,1721590232235,-500.0,0.00011,4]
[332858799,1721590232244,-300.0,0.00011068,2]
[332858800,1721590232253,-165.25,0.00011068,2]
[332858801,1721590232263,-165.25,0.00011068,2]
[332858802,1721590232272,-165.25,0.00011068,2]
[332858803,1721590232282,-150.0,0.00011068,2]
[332858804,1721590232291,-1971.67084,0.0001109,2]
[332858805,1721590232300,-800.0,0.000111,4]
[332858806,1721590232310,-1403.84050483,0.00011105,2]
[332858807,1721590232319,-356.93341906,0.00011105,2]
[332858808,1721590232329,-159.37746402,0.00011105,2]
[332858809,1721590232338,-155.0,0.00011105,2]
[332858810,1721590232348,-10528.40518333,0.00011105,2]
[332858811,1721590232357,-5665.34131417,0.00011105,2]
[332858812,1721590232367,-3399.71436587,0.00011105,2]
[332858813,1721590232377,-1500.0,0.00011105,2]
[332858814,1721590232386,-266.95796456,0.00011105,2]
[332858815,1721590232397,-835.97661551,0.00011105,2]
[332858816,1721590232407,-1551.56577626,0.00011105,2]
[332858817,1721590232416,-155.0,0.00011105,2]
[332858818,1721590232426,-722.49604628,0.00011105,2]
[332858819,1721590232441,-737.31950674,0.00011105,2]
[332858820,1721590232451,-155.40443024,0.00011105,2]
[332858821,1721590232460,-264.09660197,0.00011105,2]
[332858822,1721590232469,-308.85879004,0.00011105,2]
[332858823,1721590232479,-327.89236896,0.00011105,2]
[332858824,1721590232489,-164.16460495,0.00011105,2]
[332858825,1721590232498,-265.61147428,0.00011105,2]
[332858826,1721590232507,-195.43862206,0.00011105,2]
[332858827,1721590232517,-179.81360085,0.00011105,2]
[332858828,1721590232526,-492.92587255,0.00011105,2]
[332858829,1721590232535,-360.25065436,0.00011161,2]
[332858830,1721590232544,-1100.0,0.000112,4]
[332858831,1721590232554,-1400.0,0.000113,4]
[332858832,1721590232563,-2363.0,0.00011317,2]
[332858833,1721590232572,-1444.88001929,0.00011322,2]
[332858834,1721590232581,-3646.69087997,0.00011324,2]
[332858835,1721590232590,-1971.67084,0.000114,2]
[332858836,1721590232600,-200.0,0.000114,4]
[332858837,1721590232609,-200.0,0.000115,4]
[332858838,1721590232618,-2276.14192379,0.00011525,2]
[332858839,1721590232627,-420.0,0.00011531,2]
[332858840,1721590232636,-200.0,0.000116,4]
[332858841,1721590232646,-150.0,0.00011653,2]
[332858842,1721590232655,-150.0,0.0001166,2]
[332858843,1721590232664,-165.0,0.00011661,2]
[332858844,1721590232673,-492.003,0.00011691,2]
[332858845,1721590232683,-150.0,0.00011694,2]
[332858846,1721590232696,-200.0,0.000117,4]
[332858847,1721590232705,-8573.25,0.000117,2]
[332858848,1721590232715,-150.0,0.00011709,2]
[332858849,1721590232724,-150.0,0.0001172,2]
[332858850,1721590232734,-1971.67084,0.0001172,2]
[332858851,1721590232744,-620.0,0.00011728,2]
[332858852,1721590232753,-810.0,0.00011728,2]
[332858853,1721590233113,-450.0,0.00011728,2]
[332858854,1721590233145,-445.0,0.00011728,2]
[332858855,1721590233156,-2382.0,0.00011728,2]
[332858856,1721590233168,-550.0,0.00011728,2]
[332858857,1721590233178,-1982.0,0.00011728,2]
[332858858,1721590233191,-150.0,0.00011728,2]
[332858859,1721590233200,-3282.0,0.00011728,2]
[332858860,1721590233210,-1073.0,0.00011728,2]
[332858861,1721590233220,-5826.0,0.00011728,2]
[332858862,1721590233230,-1201.0,0.00011728,2]
[332858863,1721590233240,-5120.0,0.00011728,2]
[332858864,1721590233250,-1663.0,0.00011728,2]
[332858865,1721590233260,-1253.0,0.00011728,2]
[332858866,1721590233270,-362.0,0.00011728,2]
[332858867,1721590233280,-1829.0,0.00011728,2]
[332858868,1721590233289,-150.0,0.00011731,2]
[332858869,1721590233299,-231.62962046,0.00011751,2]
[332858870,1721590233308,-265.75849658,0.00011776,2]
[332858871,1721590233318,-184.97,0.00011778,2]
[332858872,1721590233327,-150.0,0.00011779,2]
[332858873,1721590233339,-220.45,0.00011781,2]
[332858874,1721590233348,-488.8288,0.00011792,2]
[332858875,1721590233358,-953.6278,0.00011792,2]
[332858876,1721590233368,-872.3382,0.00011792,2]
[332858877,1721590233377,-328.5023,0.00011792,2]
[332858878,1721590233388,-1119.6226,0.00011794,2]
[332858879,1721590233398,-338.7468,0.00011794,2]
[332858880,1721590233407,-1000.0,0.000118,2]
[332858881,1721590233417,-6568.4553,0.000118,2]
[332858882,1721590233427,-169.35089189,0.000118,2]
[332858883,1721590233441,-7500.0,0.000118,2]
[332858884,1721590233451,-235.25953662,0.000118,2]
[332858885,1721590233461,-802.0,0.000118,4]
[332858886,1721590233471,-500.0,0.00011805,2]
[332858887,1721590233481,-150.0,0.0001181,2]
[332858888,1721590233490,-1000.0,0.00011832,2]
[332858889,1721590233500,-150.0,0.00011833,2]
[332858890,1721590233510,-150.0,0.00011833,2]
[332858891,1721590233520,-150.0,0.00011833,2]
[332858892,1721590233529,-150.0,0.00011833,2]
[332858893,1721590233538,-150.0,0.00011833,2]
[332858894,1721590233548,-150.0,0.00011841,2]
[332858895,1721590233558,-150.0,0.00011859,2]
[332858896,1721590233567,-150.0,0.00011867,2]
[332858897,1721590233577,-248.61193234,0.0001187,2]
[332858898,1721590233586,-77866.22073991,0.0001188,2]
[332858899,1721590233599,-10541.88631531,0.0001188,2]
[332858900,1721590233610,-3905.32454602,0.0001188,2]
[332858901,1721590233649,-1492.82842183,0.0001188,2]
[332858914,1721590237849,-1665.0,0.00011728,2]
[332858916,1721590237859,-3698.31354804,0.00011877,2]
[332858917,1721590237870,-6763.3627808,0.0001188,2]
[332858918,1721590238061,-282.29427162,0.0001188,2]
[332858927,1721590239854,-7181.41932231,0.0001188,2]
[332858928,1721590240215,-1712.86495521,0.0001188,2]
[332858929,1721590240227,-869.54,0.0001188,2]
[332858930,1721590240239,-3172.28499206,0.0001188,2]
[332859169,1721590243134,-10416.13705069,0.0001188,2]
[332859170,1721590243303,-5841.0861,0.0001188,2]
[332859188,1721590248681,-620.0,0.00011726,2]
[332859189,1721590248690,-810.0,0.00011726,2]
[332859190,1721590248701,-10321.65552736,0.0001188,2]
[332859191,1721590248725,-2207.1800953,0.0001188,2]
[332859199,1721590457371,-3025.56055524,0.00011108,2]
[332859200,1721590457392,-5722.0,0.00011185,2]
[332859201,1721590457413,-250.0,0.00011208,2]
[332859202,1721590457437,-300.0,0.00011213,2]
[332859203,1721590457460,-2176.4,0.00011214,2]
[332859204,1721590457480,-2383.0098586,0.00011324,2]
[332859205,1721590457502,-14017.48501674,0.00011725,2]
[332859206,1721590457522,-150.0,0.00011725,2]
[332859207,1721590457542,-450.0,0.00011726,2]
[332859208,1721590457563,-445.0,0.00011726,2]
[332859209,1721590457583,-1073.0,0.00011726,2]
[332859210,1721590457604,-544.0,0.00011726,2]
[332859211,1721590457624,-1963.54456942,0.00011726,2]
[332859212,1721590500883,160.0,8.999e-05,2]
[332859214,1721590607690,-291.12934828,0.000121,30]
[332859217,1721590642238,-904.65199421,0.0002,120]
[332859218,1721590661346,500.0,0.0002,120]
[332859219,1721590682282,500.0,0.0002,120]
[332859222,1721590812875,500.0,0.0002,120]
[332859223,1721590845905,-155.0,0.0001372,60]
[332859224,1721590845930,-155.0,0.00013789,60]
[332859225,1721590845971,-1720.35,0.00018849,30]
[332859226,1721590881770,500.0,0.0002,30]
[332859227,1721590893337,1576.98,0.00018849,30]
[332859228,1721590910553,500.0,0.0002,30]
[332859229,1721591000632,500.0,0.0002,30]
[332859230,1721591052779,500.0,0.0002,30]
[332859231,1721591100950,500.0,0.0002,30]
[332859232,1721591132704,500.0,0.0002,30]
[332859233,1721591136400,955.97,8.903e-05,2]
[332859234,1721591137947,500.01,0.0002,30]
[332859236,1721591191813,295.93,0.0002,30]
[332859237,1721591221417,295.93,0.0002,30]
[332859258,1721591310519,-151.0,0.00020469,120]
[332859259,1721591333806,-3139.08038778,0.00023,120]
[332859288,1721591352117,-1582.16997231,0.00024,120]
[332859289,1721591352138,-159.17,0.0002415,120]
[332859290,1721591352165,-625.48091507,0.00025,120]
[332859345,1721591431932,-195.69,0.00010492,2]
[332859346,1721591431941,-3755.56,0.00010616,2]
[332859347,1721591431951,-250.0,0.00010826,2]
[332859348,1721591431960,-500.0,0.000109,3]
[332859350,1721591431970,-1000.0,0.00010917,2]
[332859352,1721591431980,-250.0,0.00010927,2]
[332859354,1721591431989,-210.74,0.00010938,2]
[332859355,1721591431998,-1100.0,0.00011,4]
[332859356,1721591432008,-170.17,0.00011031,2]
[332859360,1721591432385,-150.0,0.00011068,2]
[332859361,1721591432395,-15579.9209,0.00011085,2]
[332859362,1721591432405,-1600.0,0.000111,4]
[332859363,1721591432415,-1296.43589473,0.00011105,2]
[332859364,1721591432424,-155.51811222,0.00011105,2]
[332859365,1721591432433,-499.99,0.00011105,2]
[332859366,1721591432443,-958.87150947,0.00011105,2]
[332859367,1721591432453,-1273.72040028,0.00011105,2]
[332859368,1721591432464,-1073.15860955,0.00011105,2]
[332859369,1721591432473,-371.24530225,0.00011105,2]
[332859370,1721591432484,-955.97,0.00011167,2]
[332859371,1721591432494,-150.0,0.00011199,2]
[332859372,1721591432504,-2200.0,0.000112,4]
[332859373,1721591432513,-2700.0,0.000113,4]
[332859374,1721591432529,-576.69598058,0.00011322,2]
[332859375,1721591432539,-265.08570858,0.00011322,2]
[332859376,1721591432550,-833.39,0.00011373,2]
[332859377,1721591432560,-420.03,0.00011373,2]
[332859378,1721591432569,-500.0,0.000114,4]
[332859379,1721591432579,-500.0,0.000115,4]
[332859380,1721591432589,-331.74,0.00011525,2]
[332859381,1721591432599,-1261.27,0.00011525,2]
[332859382,1721591432609,-155.0,0.00011525,2]
[332859383,1721591432619,-500.0,0.000116,4]
[332859384,1721591432629,-14487.7952,0.0001168,2]
[332859385,1721591432638,-2500.0,0.0001168,2]
[332859386,1721591432648,-500.0,0.000117,4]
[332859387,1721591432657,-362.0,0.00011726,2]
[332859388,1721591432667,-1253.0,0.00011726,2]
[332859389,1721591432677,-1829.0,0.00011726,2]
[332859390,1721591432687,-1663.0,0.00011726,2]
[332859391,1721591432697,-445.0,0.00011726,2]
[332859392,1721591432707,-620.0,0.00011726,2]
[332859393,1721591432716,-354.409,0.00011726,2]
[332859394,1721591432726,-808.0,0.00011726,2]
[332859395,1721591432736,-334.061,0.00011726,2]
[332859396,1721591432746,-3270.0,0.00011726,2]
[332859397,1721591432755,-384.064,0.00011726,2]
[332859398,1721591432764,-1201.0,0.00011726,2]
[332859399,1721591432779,-150.0,0.00011726,2]
[332859400,1721591432788,-5120.0,0.00011726,2]
[332859401,1721591432797,-150.0,0.00011726,2]
[332859402,1721591432807,-1073.0,0.00011726,2]
[332859403,1721591432817,-657.22361,0.0001176,2]
[332859404,1721591432827,-1102.8588,0.0001178,2]
[332859405,1721591432836,-709.054,0.0001178,2]
[332859406,1721591432846,-6992.8881,0.0001178,2]
[332859407,1721591432855,-53494.51726274,0.0001178,2]
[332859408,1721591432868,-6747.0458,0.0001178,2]
[332859409,1721591432891,-11107.41431585,0.0001178,2]
[332859410,1721591432902,-12191.51498028,0.0001178,2]
[332859411,1721591432914,-56216.26174113,0.0001178,2]
[332859412,1721591432924,-1000.0,0.0001178,2]
[332859413,1721591432934,-167.90797251,0.0001178,2]
[332859414,1721591432943,-393.89289717,0.0001178,2]
[332859415,1721591432953,-6860.804,0.0001178,2]
[332859416,1721591432962,-5942.26883463,0.0001178,2]
[332859417,1721591432972,-1000.0,0.000118,2]
[332859418,1721591432982,-900.0,0.000118,4]
[332859419,1721591432993,-3290.36146681,0.000118,2]
[332859420,1721591433002,-1003.28428075,0.00011858,2]
[332859421,1721591433012,-1264.76384853,0.00011858,2]
[332859422,1721591433024,-293.26056988,0.0001187,2]
[332859423,1721591433034,-69423.05236134,0.0001188,2]
[332859424,1721591433050,-12183.07900059,0.0001188,2]
[332859425,1721591433068,-800.07111468,0.0001188,2]
[332859426,1721591433081,-443.73261381,0.0001188,2]
[332859451,1721591438139,-640.95558099,0.000118,2]
[332859452,1721591438149,-1367510.15867655,0.0001188,2]
[332859453,1721591438159,-200.0,0.0001188,2]
[332859454,1721591438168,-293.26056988,0.0001189,2]
[332859455,1721591438178,-293.26056988,0.0001189,2]
[332859456,1721591438188,-776.0,0.0001189,2]
[332859457,1721591438198,-165.25,0.0001189,2]
[332859458,1721591438208,-2252.99999901,0.00011899,2]
[332859459,1721591438217,-1012.2158,0.00011899,2]
[332859460,1721591438228,-1106.10866471,0.00011899,3]
[332859461,1721591438237,-1000.0,0.00011899,2]
[332859462,1721591438247,-1325.10523291,0.00011899,3]
[332859464,1721591438256,-114488.11108363,0.000119,2]
[332859467,1721591438279,-3804.36369245,0.000119,2]
[332859469,1721591438294,-168052.50000001,0.000119,2]
[332859471,1721591438305,-7200.0,0.000119,2]
[332859473,1721591438317,-22284.39102605,0.000119,2]
[332859476,1721591438333,-384.59479513,0.000119,2]
[332859479,1721591438358,-28428.65968803,0.000119,2]
[332859481,1721591438370,-1020.64134238,0.000119,2]
[332859484,1721591438381,-20344.67526414,0.000119,2]
[332859486,1721591438405,-781.88578096,0.000119,2]
[332859488,1721591438417,-769.22313,0.000119,2]
[332859489,1721591438433,-630.05082092,0.000119,2]
[332859490,1721591438444,-536.84779067,0.000119,2]
[332859491,1721591438455,-335.125,0.000119,2]
[332859492,1721591438467,-1002.80646779,0.000119,2]
[332859493,1721591438478,-28355.42344949,0.000119,2]
[332859494,1721591438495,-734.70866164,0.000119,2]
[332859495,1721591438507,-1082.17917477,0.000119,2]
[332859618,1721591441695,-1588.41784623,0.000119,2]
[332859621,1721591441711,-3532.00000001,0.000119,2]
[332859623,1721591441725,-943.41094818,0.000119,2]
[332859625,1721591441739,-1295.2079835,0.000119,2]
[332859627,1721591441754,-1069.22275289,0.000119,2]
[332859629,1721591441768,-624.95353004,0.000119,2]
[332859633,1721591441799,-517.3092,0.000119,2]
[332859636,1721591441819,-38471.67015177,0.000119,2]
[332859638,1721591441833,-858.02795208,0.000119,2]
[332859641,1721591441852,-1634.77398797,0.000119,2]
[332859644,1721591441876,-260.08778133,0.000119,2]
[332859650,1721591441920,-82757.37687966,0.000119,2]
[332859653,1721591441940,-707.7,0.000119,2]
[332859792,1721591443042,-1310.42936115,0.000119,2]
[332859795,1721591443054,-1591.64975481,0.000119,2]
[332859801,1721591443098,-681.83583395,0.000119,2]
[332859804,1721591443109,-14696.91747197,0.000119,2]
[332859807,1721591443121,-15125.43495355,0.000119,2]
[332859811,1721591443133,-168979.26765433,0.000119,2]
[332859816,1721591443157,-598.32088581,0.000119,2]
[332859825,1721591443208,-405.338275,0.000119,2]
[332859828,1721591443220,-377.807512,0.000119,2]
[332859830,1721591443231,-3041.95,0.000119,2]
[332859832,1721591443242,-1750.91473499,0.000119,2]
[332859834,1721591443253,-1323981.6154969,0.000119,2]
[332859841,1721591443319,-268.77602007,0.000119,2]